bitfinex/quotes_ETHUSD_20250430
["timestamp","ask_amount","ask_price","bid_price","bid_amount"]
[1746015605256,0.19999999,1806.5,1806.0,23.80407642]
[1746015605257,0.19999999,1806.5,1806.4,10.47287245]
[1746015606607,0.19999999,1806.5,1806.4,4.937]
[1746015607808,0.19999999,1806.5,1806.4,10.47287245]
[1746015608010,0.19999999,1806.5,1806.4,12.07375973]
[1746015609701,0.19999999,1806.5,1806.4,6.53788728]
[1746015610504,0.19999999,1806.2,1806.0,18.267]
[1746015610707,0.19999999,1806.2,1806.1,4.937]
[1746015611984,0.19999999,1806.1,1806.0,18.267]
[1746015612205,0.19999999,1806.1,1806.0,23.205]
[1746015612788,0.19999999,1806.1,1806.0,23.3092859]
[1746015616111,5.73679197,1806.1,1806.0,23.3092859]
[1746015616943,0.19999999,1806.1,1806.0,23.3092859]
[1746015617248,0.19999999,1806.1,1806.0,25.64021449]
[1746015617543,0.19999999,1806.1,1806.0,31.17731305]
[1746015618418,0.19999999,1806.1,1806.0,25.64021449]
[1746015621114,1.01839999,1806.1,1806.0,23.3092859]
[1746015621321,0.19999999,1806.1,1806.0,23.3092859]
[1746015625224,0.19999999,1806.1,1806.0,28.84638446]
[1746015625445,6.35998481,1806.4,1806.0,28.84638446]
[1746015625446,0.19999999,1806.4,1806.0,28.84638446]
[1746015625647,0.19999999,1806.4,1806.3,5.53617892]
[1746015625852,0.19999999,1806.3,1806.2,6.86027538]
[1746015627155,0.19999999,1806.3,1806.2,6.86048543]
[1746015628567,0.19999999,1806.4,1806.3,5.53617892]
[1746015631193,0.19999999,1806.4,1806.3,6.08617892]
[1746015632373,0.19999999,1806.5,1806.3,6.08617892]
[1746015632698,0.19999999,1806.5,1806.4,11.60649034]
[1746015633303,0.19999999,1806.5,1806.4,6.07061789]
[1746015633662,0.19999999,1806.5,1806.4,11.60649034]
[1746015635291,0.19999999,1806.7,1806.5,5.53556601]
[1746015635567,0.19999999,1806.7,1806.6,5.5352596]
[1746015635889,0.19999999,1806.7,1806.6,6.3294596]
[1746015636085,9.24275509,1807.3,1806.6,6.3294596]
[1746015636086,0.95679999,1806.9,1806.8,5.53464688]
[1746015636288,0.95679999,1806.6,1806.5,5.53540248]
[1746015636599,0.95679999,1806.6,1806.5,10.44640248]
[1746015637328,0.19999999,1806.6,1806.5,10.44640248]
[1746015638510,0.19999999,1806.6,1806.5,12.10547812]
[1746015640732,0.19999999,1806.6,1806.5,12.39197326]
[1746015643919,0.19999999,1806.6,1806.5,12.94197326]
[1746015645032,0.19999999,1806.6,1806.5,12.39197326]
[1746015646547,0.19999999,1806.6,1806.5,5.19749514]
[1746015647448,0.19999999,1806.6,1806.5,10.73306115]
[1746015655554,0.19999999,1806.7,1806.6,5.5352596]
[1746015655956,0.19999999,1806.7,1806.6,5.82033886]
[1746015656160,0.71568505,1806.7,1806.6,5.82033886]
[1746015656763,1.02512644,1806.7,1806.6,5.82033886]
[1746015657660,1.02512644,1806.7,1806.6,0.28507926]
[1746015658862,1.54105145,1806.7,1806.6,0.28507926]
[1746015660081,7.07600467,1806.7,1806.6,0.28507926]
[1746015660376,8.41544096,1806.7,1806.6,0.28507926]
[1746015660830,1.54105145,1806.7,1806.6,0.28507926]
[1746015661031,7.07600467,1806.7,1806.6,0.28507926]
[1746015661332,7.0763156,1806.7,1806.6,0.28507926]
[1746015668880,10.91670704,1806.7,1806.6,0.28507926]
[1746015669184,5.53556601,1806.5,1806.4,4.828]
[1746015669408,6.051562,1806.5,1806.4,5.11534478]
[1746015669709,6.36100339,1806.5,1806.4,5.11534478]
[1746015669918,1.02543737,1806.5,1806.4,5.11534478]
[1746015670092,1.54136238,1806.5,1806.4,5.11534478]
[1746015670277,1.54136238,1806.5,1806.4,6.18049351]
[1746015674131,1.54136238,1806.5,1806.4,11.71636596]
[1746015674437,1.54136238,1806.5,1806.4,12.26636596]
[1746015674733,1.54136238,1806.5,1806.4,6.73049351]
[1746015675099,1.54136238,1806.5,1806.4,12.26636596]
[1746015675432,1.02543737,1806.5,1806.4,12.26636596]
[1746015676402,0.19999999,1806.6,1806.5,6.89356601]
[1746015676608,0.19999999,1806.6,1806.5,9.04266605]
[1746015678844,0.19999999,1806.6,1806.5,0.28812056]
[1746015679137,0.71551107,1806.6,1806.5,0.28812056]
[1746015679834,1.23102231,1806.6,1806.5,0.28812056]
[1746015680197,1.54034095,1806.6,1806.5,0.28812056]
[1746015680403,1.54034095,1806.6,1806.5,5.82368657]
[1746015680603,1.02482971,1806.6,1806.5,7.54895697]
[1746015680910,1.02482971,1806.6,1806.5,2.01339096]
[1746015684208,1.02482971,1806.6,1806.5,6.77739096]
[1746015687322,1.02482971,1806.6,1806.5,5.05212056]
[1746015687821,13.30494029,1806.6,1806.5,1e-08]
[1746015688130,6.53637244,1806.4,1806.3,4.764]
[1746015688836,7.05188352,1806.4,1806.3,4.764]
[1746015689044,2.03152353,1806.4,1806.3,4.764]
[1746015689221,2.34084217,1806.4,1806.3,4.764]
[1746015689830,7.87671462,1806.4,1806.3,4.764]
[1746015690032,2.34084217,1806.4,1806.3,4.764]
[1746015691058,1.54034217,1806.4,1806.3,4.764]
[1746015695461,1.54034217,1806.4,1806.3,4.9796181]
[1746015696722,7.89601462,1806.4,1806.3,4.9796181]
[1746015699158,7.07621462,1806.4,1806.3,4.9796181]
[1746015699462,1.54034217,1806.4,1806.3,4.9796181]
[1746015699865,7.07621462,1806.4,1806.3,4.9796181]
[1746015702633,11.46335536,1806.4,1806.3,4.9796181]
[1746015702934,0.19999999,1805.8,1805.6,0.7553]
[1746015703241,0.19999999,1805.4,1805.3,5.5193]
[1746015703457,0.19999999,1805.4,1805.3,4.76494795]
[1746015703765,6.53063872,1805.4,1805.3,4.76494795]
[1746015704385,1.50537648,1805.4,1805.3,4.76494795]
[1746015704538,1.81357558,1805.4,1805.3,4.76494795]
[1746015704734,7.35251431,1805.4,1805.3,4.76494795]
[1746015704934,6.83883782,1805.4,1805.3,4.76494795]
[1746015705152,0.99169999,1805.4,1805.3,4.76494795]
[1746015705636,6.53063872,1805.4,1805.3,4.76494795]
[1746015706039,0.99169999,1805.4,1805.3,4.76494795]
[1746015706648,0.19999999,1805.4,1805.3,4.76494795]
[1746015708753,0.19999999,1805.4,1805.3,4.764]
[1746015708955,0.19999999,1805.4,1805.3,4.76481989]
[1746015709578,1.01669999,1805.4,1805.3,4.76481989]
[1746015709891,7.2111721,1805.4,1805.3,4.76481989]
[1746015710461,9.57082121,1805.4,1805.3,4.76481989]
[1746015710662,9.57082121,1805.4,1805.3,4.95296551]
[1746015710875,7.2111721,1805.4,1805.3,4.95296551]
[1746015711070,7.2111721,1805.4,1805.3,0.18896551]
[1746015711278,7.2111721,1805.4,1805.3,4.92696551]
[1746015713394,12.64006578,1805.4,1805.3,0.18896551]
[1746015713553,13.08175709,1805.4,1805.3,0.18896551]
[1746015713955,0.19999999,1804.8,1804.7,4.738]
[1746015714187,0.19999999,1804.8,1804.4,4.738]
[1746015714188,0.19999999,1804.5,1804.4,4.738]
[1746015715691,0.19999999,1804.5,1804.4,4.88755295]
[1746015716057,8.74170129,1804.5,1804.4,4.88755295]
[1746015716552,9.60337818,1804.5,1804.4,0.14955295]
[1746015716755,11.35383315,1804.5,1804.4,0.14955295]
[1746015716996,9.56721556,1804.3,1804.2,4.739]
[1746015717165,9.56721556,1804.3,1804.1,0.05]
[1746015717166,9.56752275,1804.2,1804.1,0.05]
[1746015717487,9.63682632,1804.2,1804.1,0.05]
[1746015717790,11.39070542,1804.2,1804.1,0.05130533]
[1746015717952,5.77877909,1804.2,1804.1,0.05130533]
[1746015718273,1.02489999,1804.2,1804.1,0.05130533]
[1746015718679,0.19999999,1804.2,1804.1,0.05130533]
[1746015718856,0.19999999,1804.2,1804.1,5.59423532]
[1746015720085,0.19999999,1804.2,1804.1,6.14423532]
[1746015720286,0.19999999,1804.2,1804.1,8.50388443]
[1746015720480,0.19999999,1804.2,1804.1,3.83586781]
[1746015720683,0.19999999,1804.2,1804.1,9.3787978]
[1746015721594,0.19999999,1804.2,1804.1,5.59423532]
[1746015721968,0.19999999,1804.4,1804.3,5.54231557]
[1746015722174,0.19999999,1804.3,1804.2,5.54233414]
[1746015722697,0.19999999,1804.3,1804.2,5.54262276]
[1746015724190,0.19999999,1804.3,1804.1,5.59272311]
[1746015724516,0.19999999,1804.3,1804.2,5.54262276]
[1746015725083,0.19999999,1804.3,1804.1,5.59268042]
[1746015725416,0.19999999,1804.3,1804.2,5.54262276]
[1746015725616,0.19999999,1804.2,1804.1,0.05]
[1746015725916,0.19999999,1804.2,1804.1,4.79230533]
[1746015726417,6.51892275,1804.2,1804.1,4.79230533]
[1746015726615,7.72505941,1804.2,1804.1,4.79230533]
[1746015728219,2.18243665,1804.2,1804.1,4.79230533]
[1746015728422,7.72505941,1804.2,1804.1,4.79230533]
[1746015729026,0.19999999,1803.8,1803.5,0.005]
[1746015729199,9.57756661,1803.6,1803.5,0.005]
[1746015729398,11.09668137,1803.6,1803.5,0.005]
[1746015729600,11.09668137,1803.6,1803.5,0.00647133]
[1746015730200,1.03309999,1803.6,1803.5,0.00647133]
[1746015730396,6.57756661,1803.6,1803.5,0.00647133]
[1746015730822,6.57756661,1803.6,1803.5,0.17663384]
[1746015731232,6.57756661,1803.6,1803.5,4.91863384]
[1746015732159,5.74446661,1803.6,1803.5,0.17663384]
[1746015732322,9.52577404,1803.5,1803.4,1e-08]
[1746015732647,6.83131126,1803.5,1803.4,1e-08]
[1746015733245,6.83131126,1803.5,1803.4,0.0011919]
[1746015733443,1.28653721,1803.5,1803.4,0.0011919]
[1746015733616,5.74477404,1803.5,1803.4,0.0011919]
[1746015733817,6.94301473,1803.5,1803.4,0.0011919]
[1746015734152,6.87369811,1803.5,1803.4,0.0011919]
[1746015734460,6.94301808,1803.5,1803.4,0.0011919]
[1746015735128,6.87369811,1803.5,1803.4,0.0011919]
[1746015735528,1.32892406,1803.5,1803.4,0.0011919]
[1746015735715,0.19999999,1803.5,1803.4,0.0011919]
[1746015735920,5.74477404,1803.5,1803.4,0.0011919]
[1746015736365,0.19999999,1803.5,1803.4,0.0011919]
[1746015736533,5.74477404,1803.5,1803.4,0.0011919]
[1746015737150,0.19999999,1803.5,1803.4,0.0011919]
[1746015737714,0.19999999,1803.5,1803.4,5.54627341]
[1746015738157,0.19999999,1803.7,1803.4,8.48832657]
[1746015738351,0.19999999,1803.7,1803.6,0.8087]
[1746015738653,0.19999999,1803.7,1803.6,6.35316662]
[1746015738849,0.19999999,1803.7,1803.6,6.35423556]
[1746015739438,0.19999999,1803.7,1803.6,11.09723556]
[1746015739748,0.19999999,1803.8,1803.7,5.54415922]
[1746015740155,0.19999999,1803.8,1803.7,5.69525826]
[1746015740739,0.19999999,1804.1,1803.9,5.54354454]
[1746015740939,0.19999999,1804.1,1804.0,11.23393725]
[1746015741138,0.19999999,1804.1,1804.0,11.38522065]
[1746015741359,0.19999999,1804.1,1804.0,0.1512834]
[1746015741525,5.74292998,1804.1,1804.0,5.0192834]
[1746015741725,5.74292998,1804.1,1804.0,4.868]
[1746015741947,5.74292998,1804.1,1804.0,5.02010651]
[1746015742153,6.87149794,1804.1,1804.0,5.02010651]
[1746015742578,7.38228126,1804.1,1804.0,5.02010651]
[1746015742781,1.83935127,1804.1,1804.0,5.02010651]
[1746015742984,0.71078331,1804.1,1804.0,5.02010651]
[1746015743191,0.19999999,1804.1,1804.0,5.02010651]
[1746015743400,5.74292998,1804.1,1804.0,5.02010651]
[1746015743880,10.39261148,1804.1,1804.0,5.02010651]
[1746015744363,10.90366076,1804.1,1804.0,5.02010651]
[1746015744563,13.0286865,1804.1,1804.0,5.02010651]
[1746015745082,5.74477404,1803.5,1803.4,1e-08]
[1746015745287,5.74477404,1803.5,1803.4,0.00102728]
[1746015745599,6.56242557,1803.5,1803.4,0.00102728]
[1746015745806,6.56242557,1803.5,1803.4,0.13356681]
[1746015746016,6.56242557,1803.5,1803.4,0.00102728]
[1746015746303,7.07350482,1803.5,1803.4,0.00102728]
[1746015746507,7.07350482,1803.5,1803.4,0.13356681]
[1746015749381,1.52873077,1803.5,1803.4,0.13356681]
[1746015749587,1.22212852,1803.5,1803.4,0.13356681]
[1746015749973,6.25582332,1803.5,1803.4,0.13356681]
[1746015750773,7.43586513,1803.5,1803.4,0.13356681]
[1746015751011,8.26016513,1803.5,1803.4,0.13356681]
[1746015751577,8.56671355,1803.5,1803.4,0.13356681]
[1746015752107,1.01759769,1803.5,1803.4,0.13356681]
[1746015752508,6.56237174,1803.5,1803.4,0.13356681]
[1746015752712,6.63168856,1803.5,1803.4,0.13356681]
[1746015752918,6.56237174,1803.5,1803.4,0.13356681]
[1746015753420,7.07360858,1803.5,1803.4,0.13356681]
[1746015753575,8.33543276,1803.5,1803.4,0.13356681]
[1746015753778,7.07360858,1803.5,1803.4,0.13356681]
[1746015754682,7.07360858,1803.5,1803.4,0.1343668]
[1746015754927,1.52883453,1803.5,1803.4,0.1343668]
[1746015755100,7.07360858,1803.5,1803.4,0.1343668]
[1746015755481,1.52883453,1803.5,1803.4,5.67944831]
[1746015755705,1.52883453,1803.5,1803.4,0.1343668]
[1746015756021,1.52883453,1803.5,1803.4,1.18914103]
[1746015756222,1.52883453,1803.5,1803.4,6.73422254]
[1746015756421,1.01778525,1803.5,1803.4,6.73422254]
[1746015756778,0.19999999,1803.5,1803.4,7.50442254]
[1746015757720,0.19999999,1803.5,1803.4,7.50427238]
[1746015760080,0.19999999,1803.5,1803.4,0.9045668]
[1746015760420,0.19999999,1803.5,1803.4,6.44964831]
[1746015760911,0.19999999,1803.5,1803.4,0.9045668]
[1746015761330,5.74477404,1803.5,1803.4,0.9045668]
[1746015761480,5.74477404,1803.5,1803.4,0.1343668]
[1746015761826,8.1432576,1803.5,1803.4,0.1343668]
[1746015761985,8.96270325,1803.5,1803.4,0.1343668]
[1746015762185,8.96270325,1803.5,1803.4,0.0008]
[1746015762377,8.96270325,1803.5,1803.4,0.13712168]
[1746015762378,7.07636592,1803.5,1803.4,0.13712168]
[1746015762605,7.07636592,1803.5,1803.4,0.0008]
[1746015762807,7.07636592,1803.5,1803.4,0.13712168]
[1746015763008,7.14568301,1803.5,1803.4,0.0008]
[1746015763207,15.3179234,1803.5,1803.4,0.12770299]
[1746015763388,16.51763453,1803.5,1803.4,0.0008]
[1746015763593,16.51763453,1803.5,1803.4,0.12873393]
[1746015763789,16.51763453,1803.5,1803.4,0.0008]
[1746015763987,16.51763453,1803.5,1803.4,0.12979317]
[1746015764200,16.51763453,1803.5,1803.4,0.0008]
[1746015764433,5.74569652,1803.2,1803.1,0.05]
[1746015764592,15.33675221,1803.2,1803.1,0.05]
[1746015764789,15.33675221,1803.2,1803.1,0.16052047]
[1746015765214,15.84889844,1803.2,1803.1,0.16052047]
[1746015766295,9.56770409,1803.1,1803.0,1.40827408]
[1746015766616,6.36831933,1802.9,1802.8,1.57494075]
[1746015766804,12.51008822,1802.9,1802.8,1.57494075]
[1746015767111,15.9528919,1802.9,1802.8,1.57494075]
[1746015767330,16.26018098,1802.9,1802.8,1.57494075]
[1746015767814,16.26018098,1802.9,1802.0,6.35600769]
[1746015767815,9.572158,1802.4,1802.0,4.869]
[1746015768014,11.15353642,1802.4,1802.0,4.869]
[1746015768228,11.59632796,1802.4,1802.0,4.869]
[1746015768725,16.28455743,1802.4,1802.0,4.869]
[1746015768925,16.79670366,1802.4,1802.0,4.869]
[1746015769213,0.71214622,1802.4,1802.1,0.81]
[1746015769404,6.26030423,1802.4,1802.1,0.81]
[1746015769608,6.32966108,1802.4,1802.1,0.81]
[1746015769806,6.32966108,1802.4,1802.1,0.05]
[1746015770039,10.14306108,1802.4,1802.1,0.05]
[1746015770927,7.07370423,1802.4,1802.1,0.05]
[1746015771220,0.71214622,1802.4,1802.3,5.55346584]
[1746015771418,0.19999999,1802.4,1802.3,1.19839179]
[1746015771811,0.19999999,1802.4,1802.3,6.74685763]
[1746015773689,0.19999999,1802.5,1802.4,5.54815801]
[1746015773889,0.19999999,1802.5,1802.4,10.41715801]
[1746015774519,0.19999999,1802.5,1802.4,10.52108044]
[1746015774820,0.19999999,1802.5,1802.4,12.24787425]
[1746015775195,0.19999999,1802.6,1802.5,5.5478502]
[1746015775817,0.19999999,1802.6,1802.5,5.65413508]
[1746015778092,0.19999999,1802.6,1802.5,5.65516056]
[1746015778292,0.19999999,1802.6,1802.5,7.5118318]
[1746015779918,0.19999999,1802.7,1802.6,5.54754243]
[1746015780118,0.19999999,1802.7,1802.6,5.54848303]
[1746015780987,0.19999999,1802.7,1802.6,10.41748303]
[1746015781193,0.19999999,1802.7,1802.6,4.8699406]
[1746015781941,0.19999999,1802.7,1802.6,10.41748303]
[1746015785126,0.19999999,1802.7,1802.5,4.97528488]
[1746015785127,6.51443469,1802.7,1802.5,4.97528488]
[1746015785429,6.1989859,1802.6,1802.5,4.869]
[1746015785795,0.19999999,1802.6,1802.5,4.869]
[1746015786606,5.74754242,1802.6,1802.5,4.869]
[1746015788528,0.19999999,1802.6,1802.5,4.869]
[1746015789308,5.74754242,1802.6,1802.5,4.869]
[1746015789739,6.64748953,1802.6,1802.5,4.869]
[1746015790035,8.81930879,1802.6,1802.5,4.869]
[1746015790229,9.12581093,1802.6,1802.5,4.869]
[1746015793244,12.12581093,1802.6,1802.5,4.869]
[1746015795151,9.12581093,1802.6,1802.5,4.869]
[1746015795308,7.90633586,1802.6,1802.5,4.869]
[1746015796325,5.748158,1802.4,1802.3,0.005]
[1746015796507,5.8175186,1802.4,1802.3,0.005]
[1746015796708,7.70205788,1802.4,1802.3,0.005]
[1746015796909,8.21290202,1802.4,1802.3,0.005]
[1746015797323,1.52819343,1802.4,1802.3,0.005]
[1746015797642,7.14570855,1802.4,1802.3,0.005]
[1746015797808,7.07635144,1802.4,1802.3,0.005]
[1746015798569,7.87985144,1802.4,1802.3,0.005]
[1746015799831,7.94921529,1802.4,1802.3,0.005]
[1746015800033,9.57647371,1802.2,1802.1,0.05]
[1746015800234,6.5088543,1801.2,1801.1,0.05]
[1746015800469,7.78430892,1801.2,1801.1,0.05]
[1746015800668,7.78430892,1801.2,1801.1,1e-08]
[1746015800669,11.29515306,1801.2,1801.1,1e-08]
[1746015800871,6.5832875,1800.8,1800.7,4.52339917]
[1746015801177,10.50659032,1800.8,1800.7,4.52339917]
[1746015801338,11.01743446,1800.8,1800.7,4.52339917]
[1746015801534,12.76953056,1800.8,1800.7,0.52349917]
[1746015801770,5.75493833,1800.2,1800.1,0.05]
[1746015801980,0.98679999,1800.2,1800.1,0.05]
[1746015802137,0.19999999,1800.2,1800.1,0.05]
[1746015802332,0.19999999,1800.3,1800.2,5.55493834]
[1746015802679,0.19999999,1800.4,1800.3,5.55462978]
[1746015802880,0.19999999,1800.4,1800.2,6.6801344]
[1746015803090,0.19999999,1800.2,1800.1,0.05]
[1746015803383,0.19999999,1800.3,1800.1,6.36004693]
[1746015803544,0.19999999,1800.5,1800.3,5.55462978]
[1746015803750,0.19999999,1800.6,1800.4,10.42332126]
[1746015803962,0.19999999,1800.5,1800.4,4.869]
[1746015804171,0.19999999,1800.2,1800.1,6.35992923]
[1746015804352,0.19999999,1800.3,1800.2,5.55493834]
[1746015805081,0.19999999,1800.2,1800.1,11.11021656]
[1746015805246,9.54613833,1800.2,1800.1,0.05]
[1746015805434,9.61559167,1800.2,1800.1,0.16388733]
[1746015805771,5.50822444,1800.2,1800.1,0.05]
[1746015805973,11.06316278,1800.2,1800.1,0.05]
[1746015806145,11.13261186,1800.2,1800.1,0.05]
[1746015806349,11.13261186,1800.2,1800.1,0.1835992]
[1746015806560,15.51355225,1800.2,1800.1,0.1835992]
[1746015806751,15.44410317,1800.2,1800.1,0.1835992]
[1746015806958,15.44410317,1800.2,1800.1,0.05]
[1746015807281,6.52137289,1799.8,1799.7,0.4132522]
[1746015807479,0.96519999,1799.8,1799.7,0.4132522]
[1746015807652,0.96519999,1799.8,1799.7,0.548196]
[1746015807653,0.19999999,1799.8,1799.7,0.548196]
[1746015808247,5.75617289,1799.8,1799.7,0.548196]
[1746015808448,7.74574939,1799.8,1799.7,0.548196]
[1746015808652,10.74574939,1799.8,1799.7,0.548196]
[1746015808852,10.74574939,1799.8,1799.1,4.87]
[1746015808853,0.19999999,1799.2,1799.1,4.87]
[1746015809251,8.75802577,1799.2,1799.1,0.12589293]
[1746015809485,10.39058612,1799.2,1799.1,0.12589293]
[1746015809850,11.21018612,1799.2,1799.1,0.00256454]
[1746015810051,11.21018612,1799.2,1798.6,23.199]
[1746015810052,0.19999999,1798.7,1798.6,28.7588799]
[1746015810264,0.19999999,1799.0,1798.7,5.5595708]
[1746015810475,0.19999999,1799.1,1798.9,5.55895269]
[1746015810641,0.19999999,1799.2,1799.1,5.55833472]
[1746015811038,0.19999999,1799.5,1799.3,5.55771688]
[1746015811342,0.19999999,1799.7,1799.5,5.55709919]
[1746015811539,0.19999999,1799.5,1799.4,5.42677169]
[1746015811740,0.19999999,1799.5,1799.4,4.871]
[1746015812775,0.19999999,1799.5,1799.4,4.87318262]
[1746015812987,0.19999999,1799.5,1799.4,10.43059064]
[1746015813143,0.19999999,1799.5,1799.4,4.87318262]
[1746015813486,9.52169918,1799.5,1799.4,0.00218262]
[1746015813669,11.09906341,1799.5,1799.4,0.00218262]
[1746015813983,0.19999999,1799.1,1799.0,4.65432485]
[1746015814475,0.19999999,1799.1,1799.0,10.21296854]
[1746015814685,0.19999999,1798.3,1798.0,0.8071]
[1746015814891,0.19999999,1798.1,1798.0,0.8071]
[1746015815096,0.19999999,1798.1,1798.0,5.084]
[1746015815583,0.19999999,1798.1,1797.9,0.4132522]
[1746015815880,0.19999999,1798.0,1797.9,5.9752968]
[1746015816083,0.19999999,1798.0,1797.9,5.4972522]
[1746015816386,0.19999999,1798.0,1797.9,5.59989432]
[1746015816882,0.759,1798.5,1798.0,5.56173526]
[1746015816883,0.19999999,1798.1,1798.0,5.56173526]
[1746015817254,0.19999999,1798.2,1798.1,5.56142594]
[1746015817457,0.19999999,1798.1,1798.0,5.66425701]
[1746015817673,0.19999999,1798.0,1797.9,0.4132522]
[1746015817875,6.65556182,1798.0,1797.9,0.4132522]
[1746015818185,0.19999999,1798.0,1797.9,0.4132522]
[1746015818501,5.76173525,1798.0,1797.9,0.4132522]
[1746015818642,0.19999999,1798.0,1797.9,0.4132522]
[1746015818846,5.76173525,1798.0,1797.9,0.4132522]
[1746015819044,0.19999999,1798.0,1797.9,0.4132522]
[1746015819554,0.19999999,1798.5,1798.3,5.56052488]
[1746015819762,0.19999999,1798.5,1798.4,5.086]
[1746015820166,0.19999999,1798.7,1798.5,5.56018904]
[1746015820491,0.19999999,1799.0,1798.7,5.5595708]
[1746015820691,0.19999999,1799.0,1798.4,5.9114]
[1746015820692,0.19999999,1799.0,1798.9,5.55895269]
[1746015820899,0.19999999,1799.1,1799.0,5.55846471]
[1746015821266,0.19999999,1799.1,1799.0,5.66849178]
[1746015821502,0.19999999,1799.5,1799.1,5.55817092]
[1746015821662,0.19999999,1799.4,1799.2,5.086]
[1746015821862,0.19999999,1799.3,1799.2,5.19615063]
[1746015822068,6.51311687,1799.3,1799.2,5.19615063]
[1746015822384,0.19999999,1799.3,1799.2,5.19615063]
[1746015823384,0.19999999,1799.4,1799.2,11.55863967]
[1746015823602,0.19999999,1799.6,1799.3,5.55754299]
[1746015823782,0.19999999,1799.6,1799.3,5.55751171]
[1746015823977,0.19999999,1799.5,1799.4,5.19648488]
[1746015824490,0.19999999,1799.5,1799.4,10.7538929]
[1746015824700,9.52059918,1799.5,1798.4,0.7616]
[1746015824890,0.19999999,1798.7,1798.5,10.64588721]
[1746015825101,0.19999999,1798.7,1798.5,5.086]
[1746015825308,0.19999999,1798.9,1798.7,5.55938403]
[1746015825509,0.19999999,1799.2,1799.0,5.5585255]
[1746015825838,0.19999999,1799.2,1799.1,5.086]
[1746015825974,0.19999999,1799.3,1799.1,5.086]
[1746015826315,0.19999999,1799.5,1799.3,5.55746425]
[1746015826517,0.19999999,1799.5,1799.4,28.99040802]
[1746015826811,0.19999999,1799.5,1799.4,23.433]
[1746015827215,0.19999999,1799.5,1799.4,28.99040802]
[1746015827399,0.19999999,1799.6,1799.5,5.55709919]
[1746015828221,0.19999999,1799.6,1799.1,0.7664]
[1746015828431,0.19999999,1799.3,1799.2,5.086]
[1746015828937,5.75792028,1799.3,1799.2,5.086]
[1746015829114,0.8225,1799.5,1798.8,19.1416]
[1746015829115,0.19999999,1799.1,1798.8,19.1416]
[1746015829303,0.19999999,1799.1,1799.0,5.55864369]
[1746015829480,0.19999999,1799.2,1799.1,5.55833472]
[1746015829683,0.19999999,1799.3,1799.1,5.55812884]
[1746015830219,0.19999999,1799.2,1799.0,5.5584393]
[1746015830520,0.19999999,1799.3,1799.1,10.64433472]
[1746015830712,0.19999999,1799.2,1799.1,10.64433472]
[1746015831209,0.19999999,1799.3,1799.2,5.55802578]
[1746015831408,8.55665873,1799.7,1799.1,5.086]
[1746015831409,0.19999999,1799.4,1799.1,5.086]
[1746015831611,0.19999999,1799.5,1799.4,5.55740802]
[1746015831799,0.19999999,1799.6,1799.5,5.55709919]
[1746015832007,0.19999999,1799.6,1799.4,17.31204275]
[1746015832186,0.19999999,1799.6,1799.4,11.75471351]
[1746015832407,0.19999999,1799.6,1799.5,5.55709919]
[1746015832589,0.19999999,1799.7,1799.6,5.55679039]
[1746015833016,0.19999999,1799.8,1799.6,5.55679039]
[1746015833393,0.19999999,1799.7,1799.6,5.55679039]
[1746015833827,0.19999999,1799.8,1799.6,11.11344763]
[1746015834122,0.19999999,1799.7,1799.6,23.90165724]
[1746015834326,0.19999999,1799.8,1799.7,5.55648163]
[1746015834537,0.19999999,1800.2,1800.0,5.55551518]
[1746015834839,0.19999999,1800.3,1800.1,10.64099317]
[1746015835185,0.19999999,1800.3,1800.1,5.086]
[1746015835390,0.19999999,1800.2,1800.1,5.086]
[1746015835592,0.19999999,1800.2,1800.1,10.64119707]
[1746015836029,0.50782977,1800.2,1800.1,11.46959707]
[1746015836527,0.70782976,1800.2,1800.1,11.46959707]
[1746015836731,0.50782977,1800.2,1800.1,11.46959707]
[1746015837136,0.50782977,1800.2,1800.1,12.72300438]
[1746015837336,0.19999999,1800.5,1800.3,5.55462978]
[1746015837543,0.19999999,1800.4,1800.3,5.55462978]
[1746015837753,0.19999999,1800.3,1800.2,5.55475662]
[1746015838050,0.19999999,1800.4,1800.3,5.55462978]
[1746015838210,0.19999999,1800.5,1800.4,5.55432126]
[1746015838541,0.19999999,1800.5,1800.4,5.085]
[1746015838829,0.19999999,1800.6,1800.4,5.085]
[1746015839030,0.19999999,1800.6,1800.5,5.55401277]
[1746015839193,5.55299478,1800.9,1800.5,5.55401277]
[1746015839194,0.19999999,1800.8,1800.5,5.55401277]
[1746015839390,0.19999999,1800.6,1800.5,5.55385971]
[1746015839598,0.19999999,1800.6,1800.5,23.89385971]
[1746015839804,0.19999999,1800.7,1800.5,29.44771942]
[1746015840023,0.19999999,1800.7,1800.5,23.89385971]
[1746015840225,0.19999999,1800.9,1800.8,5.55308751]
[1746015840426,0.19999999,1801.0,1800.9,5.55277916]
[1746015840612,0.19999999,1801.1,1800.9,11.10535842]
[1746015840924,0.19999999,1801.1,1801.0,5.55247084]
[1746015841127,0.19999999,1801.1,1800.8,5.084]
[1746015841334,0.19999999,1801.1,1801.0,5.55247084]
[1746015842037,0.19999999,1801.1,1801.0,5.55237353]
[1746015842229,0.19999999,1801.1,1800.8,11.70058678]
[1746015842426,0.19999999,1801.1,1801.0,5.55247084]
[1746015842625,0.19999999,1801.2,1801.0,5.55247084]
[1746015842825,0.19999999,1801.1,1801.0,5.55247084]
[1746015843029,0.19999999,1801.1,1800.9,5.5524985]
[1746015843221,0.19999999,1801.1,1801.0,5.083]
[1746015843848,0.19999999,1801.0,1800.8,5.55293035]
[1746015844028,0.19999999,1801.0,1800.9,10.63577916]
[1746015844540,0.19999999,1801.1,1801.0,5.55247084]
[1746015844740,0.7704,1801.1,1799.9,5.55575699]
[1746015844939,0.19999999,1800.6,1800.4,5.55409441]
[1746015845143,0.19999999,1800.6,1800.5,10.75101277]
[1746015845344,0.19999999,1800.7,1800.6,5.55370432]
[1746015845906,0.19999999,1800.8,1800.6,5.55353349]
[1746015846113,0.19999999,1800.8,1800.7,5.5533959]
[1746015846341,0.19999999,1801.1,1800.8,5.55308751]
[1746015846543,0.19999999,1801.0,1800.9,5.197]
[1746015847060,5.75277915,1800.9,1800.8,23.531]
[1746015847582,0.19999999,1800.9,1800.8,23.531]
[1746015847754,5.75277915,1800.9,1800.8,23.531]
[1746015847950,6.96411177,1800.9,1800.8,23.531]
[1746015848963,6.36054704,1801.0,1800.9,5.55277916]
[1746015848964,0.19999999,1801.0,1800.9,5.55277916]
[1746015849165,0.19999999,1801.0,1800.8,24.3281]
[1746015849381,5.75277915,1800.9,1800.8,18.334]
[1746015849587,5.75277915,1800.9,1800.8,23.531]
[1746015849784,6.96659693,1800.9,1800.8,23.531]
[1746015850171,6.96659693,1800.9,1799.4,0.7732]
[1746015850172,0.19999999,1799.8,1799.4,0.7732]
[1746015850342,0.19999999,1799.6,1799.5,5.197]
[1746015850548,0.19999999,1799.6,1799.5,11.35111919]
[1746015850790,0.19999999,1799.6,1799.5,11.35098896]